[Event "9th RTU Rapid 2019"]
[Site "Riga"]
[Date "2019.08.04"]
[Round "8.27"]
[White "Mohammad Nubairshah Shaikh"]
[Black "Gagare, Shalmali"]
[Result "1-0"]
[ECO "E32"]
[WhiteElo "2278"]
[BlackElo "1984"]
[Annotator "NA"]
[PlyCount "100"]
[EventDate "2019.08.05"]
[EventType "swiss"]
[EventCountry "LAT"]
[SourceTitle "playchess.com"]
[Source "ChessBase"]
[SourceQuality "1"]
[TimeControl "5400+30"]

1. d4 {[%emt 1:15:23]} Nf6 {[%emt 1:15:23]} 2. c4 {[%emt 0:00:27]} e6 {[%emt 0:00:27]} 3. Nc3 {[%emt 0:00:26]} Bb4 {[%emt 0:00:27]} 4. Qc2 {[%emt 0:00:27]} O-O {[%emt 0:00:28]} 5. e4 {[%emt 0:00:26]} d5 {[%emt 0:00:29]} 6. e5 {[%emt 0:00:27]} Ne4 {[%emt 0:00:26]} 7. Bd3 {[%emt 0:00:26]} c5 {[%emt 0:00:33]} 8. Nge2 {[%emt 0:00:37]} cxd4 {[%emt 0:00:52]} 9. Nxd4 {[%emt 0:00:27]} Nd7 {[%emt 0:00:39]} 10. Bf4 {[%emt 0:00:30]} Qa5 {[%emt 0:01:36]} 11. Bxe4 {[%emt 0:03:01]} dxe4 {[%emt 0:00:33]} 12. Nb3 {[%emt 0:00:27]} Bxc3+ {[%emt 0:01:26]} 13. bxc3 {[%emt 0:00:27]} Qc7 {[%emt 0:00:51]} 14. Qxe4 {[%emt 0:00:27]} b6 {[%emt 0:01:22]} 15. Qxa8 {[%emt 0:01:48]} Bb7 {[%emt 0:00:29]} 16. Qxa7 {[%emt 0:00:30]} Ra8 {[%emt 0:00:29]} 17. Qxa8+ {[%emt 0:00:28]} Bxa8 {[%emt 0:00:28]} 18. O-O {[%emt 0:00:49]} Qxc4 {[%emt 0:00:45]} 19. Bg3 {[%emt 0:04:18]} Nxe5 {[%emt 0:03:41]} 20. Rfd1 {[%emt 0:05:25]} Nd3 {[%emt 0:03:29]} 21. Nc1 {[%emt 0:00:28]} Be4 {[%emt 0:01:05]} 22. f3 {[%emt 0:01:48]} Bg6 {[%emt 0:01:20]} 23. Nxd3 {[%emt 0:00:34]} Bxd3 {[%emt 0:00:29]} 24. a4 {[%emt 0:00:26]} h5 {[%emt 0:00:52]} 25. Bf2 {[%emt 0:00:33]} h4 {[%emt 0:01:03]} 26. Bxh4 {[%emt 0:00:53]} Qxh4 {[%emt 0:00:53]} 27. Rxd3 {[%emt 0:00:27]} Qc4 {[%emt 0:00:39]} 28. Rdd1 {[%emt 0:01:17]} Qxc3 {[%emt 0:00:49]} 29. Kh1 {[%emt 0:00:26]} Qc4 {[%emt 0:01:15]} 30. Rdb1 {[%emt 0:00:29]} Qd4 {[%emt 0:00:35]} 31. h3 {[%emt 0:00:33]} e5 {[%emt 0:00:29]} 32. Re1 {[%emt 0:00:27]} f5 {[%emt 0:00:36]} 33. Rab1 {[%emt 0:00:27]} e4 {[%emt 0:00:33]} 34. fxe4 {[%emt 0:00:39]} fxe4 {[%emt 0:00:27]} 35. Re2 {[%emt 0:00:35]} Qxa4 {[%emt 0:00:43]} 36. Rbe1 {[%emt 0:00:26]} b5 {[%emt 0:01:03]} 37. Rxe4 {[%emt 0:00:26]} Qc2 {[%emt 0:00:34]} 38. Rb4 {[%emt 0:00:27]} Qc5 {[%emt 0:00:33]} 39. Reb1 {[%emt 0:00:26]} Kh7 {[%emt 0:00:27]} 40. Rxb5 {[%emt 0:00:26]} Qc2 {[%emt 0:00:31]} 41. Rb6 {[%emt 0:00:26]} Qd3 {[%emt 0:00:31]} 42. Rb7 {[%emt 0:00:26]} Qe4 {[%emt 0:00:27]} 43. R7b4 {[%emt 0:00:27]} Qe7 {[%emt 0:00:32]} 44. Rg4 {[%emt 0:00:29]} Qd7 {[%emt 0:00:30]} 45. Rf1 {[%emt 0:00:29]} Qe7 {[%emt 0:00:32]} 46. Rf3 {[%emt 0:00:29]} Qe1+ {[%emt 0:00:27]} 47. Kh2 {[%emt 0:00:25]} Qe5+ {[%emt 0:00:27]} 48. Rfg3 {[%emt 0:00:26]} Qf6 {[%emt 0:00:35]} 49. Rxg7+ {[%emt 0:00:27]} Qxg7 {[%emt 0:00:31]} 50. Rxg7+ Kxg7 {[%emt 0:00:00]} 1-0

[Event "9th RTU Rapid 2019"]
[Site "Riga"]
[Date "2019.08.04"]
[Round "8.28"]
[White "Kolesnikovs, Ivans"]
[Black "Evchin, Maxim"]
[Result "0-1"]
[ECO "C45"]
[WhiteElo "2013"]
[BlackElo "2269"]
[Annotator "NA"]
[PlyCount "100"]
[EventDate "2019.08.05"]
[EventType "swiss"]
[EventCountry "LAT"]
[SourceTitle "playchess.com"]
[Source "ChessBase"]
[SourceQuality "1"]
[TimeControl "5400+30"]

1. e4 {[%emt 1:15:34]} e5 {[%emt 1:15:23]} 2. Nf3 {[%emt 0:00:27]} Nc6 {[%emt 0:00:26]} 3. d4 {[%emt 0:00:27]} exd4 {[%emt 0:00:27]} 4. Nxd4 {[%emt 0:00:27]} Nf6 {[%emt 0:00:29]} 5. Nxc6 {[%emt 0:00:35]} bxc6 {[%emt 0:00:27]} 6. e5 {[%emt 0:00:27]} Qe7 {[%emt 0:00:27]} 7. Qe2 {[%emt 0:00:27]} Nd5 {[%emt 0:00:30]} 8. c4 {[%emt 0:01:16]} Nb6 {[%emt 0:00:28]} 9. Nc3 {[%emt 0:01:03]} Qe6 {[%emt 0:00:57]} 10. g3 {[%emt 0:01:36]} g6 {[%emt 0:01:06]} 11. b3 {[%emt 0:01:14]} Bg7 {[%emt 0:00:33]} 12. f4 {[%emt 0:01:35]} d6 {[%emt 0:01:37]} 13. Bb2 {[%emt 0:01:49]} dxe5 {[%emt 0:00:45]} 14. Ne4 {[%emt 0:01:25]} O-O {[%emt 0:00:33]} 15. Bg2 {[%emt 0:02:18]} exf4 {[%emt 0:00:51]} 16. Bxg7 {[%emt 0:00:53]} Kxg7 {[%emt 0:00:27]} 17. Qb2+ {[%emt 0:00:34]} f6 {[%emt 0:00:30]} 18. O-O {[%emt 0:00:43]} Qe5 {[%emt 0:00:54]} 19. Qf2 {[%emt 0:00:46]} fxg3 {[%emt 0:02:18]} 20. Nxg3 {[%emt 0:01:00]} f5 {[%emt 0:02:03]} 21. Rae1 {[%emt 0:00:35]} Qf6 {[%emt 0:00:28]} 22. Qc5 {[%emt 0:01:29]} Rf7 {[%emt 0:02:09]} 23. Ne4 {[%emt 0:01:32]} Nd7 {[%emt 0:00:30]} 24. Qe3 {[%emt 0:01:33]} Qe5 {[%emt 0:03:30]} 25. Ng5 {[%emt 0:00:27]} Re7 {[%emt 0:00:44]} 26. Qf2 {[%emt 0:01:01]} Qf6 {[%emt 0:00:35]} 27. Rxe7+ {[%emt 0:00:47]} Qxe7 {[%emt 0:00:27]} 28. Qd4+ {[%emt 0:00:49]} Qe5 {[%emt 0:00:44]} 29. Ne6+ {[%emt 0:00:39]} Kg8 {[%emt 0:02:52]} 30. Bxc6 {[%emt 0:00:52]} Rb8 {[%emt 0:00:33]} 31. Bd5 {[%emt 0:00:55]} c6 {[%emt 0:01:23]} 32. Bxc6 {[%emt 0:00:35]} Rb6 {[%emt 0:00:26]} 33. Bd5 {[%emt 0:00:33]} Rxe6 {[%emt 0:00:38]} 34. Qxe5 {[%emt 0:00:28]} Nxe5 {[%emt 0:00:26]} 35. Bxe6+ {[%emt 0:00:26]} Bxe6 {[%emt 0:00:26]} 36. Kf2 {[%emt 0:00:29]} Kf7 {[%emt 0:00:27]} 37. Ke3 {[%emt 0:00:28]} Kf6 {[%emt 0:00:28]} 38. Kd4 {[%emt 0:00:27]} g5 {[%emt 0:00:27]} 39. Kc5 {[%emt 0:00:36]} f4 {[%emt 0:00:28]} 40. Kd6 {[%emt 0:00:31]} f3 {[%emt 0:00:29]} 41. c5 {[%emt 0:00:32]} Bh3 {[%emt 0:00:50]} 42. Rf2 {[%emt 0:00:28]} Kf5 {[%emt 0:00:32]} 43. c6 {[%emt 0:00:30]} Kf4 {[%emt 0:00:26]} 44. c7 {[%emt 0:00:33]} Nd3 {[%emt 0:00:30]} 45. Rd2 {[%emt 0:00:28]} Ke3 {[%emt 0:00:32]} 46. Rd1 {[%emt 0:00:31]} f2 {[%emt 0:00:26]} 47. Kc6 {[%emt 0:00:33]} Ke2 {[%emt 0:00:30]} 48. Rh1 {[%emt 0:00:26]} Bg2+ {[%emt 0:00:35]} 49. Kd6 {[%emt 0:00:30]} Bh3 {[%emt 0:00:34]} 50. Ke7 {[%emt 0:00:31]} f1=Q {[%emt 0:00:28] 0} 0-1

[Event "9th RTU Rapid 2019"]
[Site "Riga"]
[Date "2019.08.04"]
[Round "8.29"]
[White "Babrauskas, Darius"]
[Black "Kretainis, Kristaps"]
[Result "1/2-1/2"]
[ECO "B40"]
[WhiteElo "1988"]
[BlackElo "2252"]
[Annotator "NA"]
[PlyCount "205"]
[EventDate "2019.08.05"]
[EventType "swiss"]
[EventCountry "LAT"]
[SourceTitle "playchess.com"]
[Source "ChessBase"]
[SourceQuality "1"]
[TimeControl "5400+30"]

1. e4 {[%emt 1:15:21]} c5 {[%emt 1:15:22]} 2. Nf3 {[%emt 0:00:27]} e6 {[%emt 0:00:25]} 3. d4 {[%emt 0:00:27]} cxd4 {[%emt 0:00:26]} 4. Nxd4 {[%emt 0:00:27]} Nf6 {[%emt 0:00:26]} 5. Nc3 {[%emt 0:00:27]} Bb4 {[%emt 0:00:25]} 6. e5 {[%emt 0:00:34]} Nd5 {[%emt 0:00:26]} 7. Bd2 {[%emt 0:00:34]} Nxc3 {[%emt 0:00:27]} 8. bxc3 {[%emt 0:00:26]} Be7 {[%emt 0:00:26]} 9. Bd3 {[%emt 0:00:37]} Nc6 {[%emt 0:00:27]} 10. Nxc6 {[%emt 0:00:44]} dxc6 {[%emt 0:00:28]} 11. Qg4 {[%emt 0:00:46]} g6 {[%emt 0:00:25]} 12. O-O {[%emt 0:00:47]} Qc7 {[%emt 0:00:36]} 13. Rfe1 {[%emt 0:00:38]} Bd7 {[%emt 0:00:29]} 14. Qf3 {[%emt 0:00:48]} Rd8 {[%emt 0:00:37]} 15. Rab1 {[%emt 0:01:23]} b6 {[%emt 0:00:33]} 16. Bh6 {[%emt 0:00:44]} c5 {[%emt 0:00:27]} 17. Be4 {[%emt 0:00:31]} Qxe5 {[%emt 0:00:40]} 18. Bf4 {[%emt 0:05:10]} Qf6 {[%emt 0:00:38]} 19. Qg3 {[%emt 0:01:25]} O-O {[%emt 0:00:43]} 20. Bc7 {[%emt 0:00:40]} Rde8 {[%emt 0:00:52]} 21. Rbd1 {[%emt 0:01:03]} Ba4 {[%emt 0:00:26]} 22. h3 {[%emt 0:01:41]} Qg5 {[%emt 0:00:47]} 23. Qd3 {[%emt 0:00:43]} Rc8 {[%emt 0:00:44]} 24. Bg3 {[%emt 0:00:30]} c4 {[%emt 0:00:41]} 25. Qf3 {[%emt 0:00:38]} Rfd8 {[%emt 0:00:55]} 26. Qe2 {[%emt 0:01:47]} Bc5 {[%emt 0:00:59]} 27. Kh2 {[%emt 0:00:38]} Bb5 {[%emt 0:00:26]} 28. Qf3 {[%emt 0:00:54]} Rxd1 {[%emt 0:00:36]} 29. Rxd1 {[%emt 0:00:26]} Rd8 {[%emt 0:00:26]} 30. Rxd8+ {[%emt 0:01:40]} Qxd8 {[%emt 0:00:26]} 31. Qf4 {[%emt 0:00:26]} Be7 {[%emt 0:01:04]} 32. Qe5 {[%emt 0:01:43]} Bf6 {[%emt 0:00:48]} 33. Qxb5 {[%emt 0:00:26]} Qc8 {[%emt 0:00:47]} 34. Be5 {[%emt 0:00:31]} a6 {[%emt 0:00:29]} 35. Qxb6 {[%emt 0:00:45]} Bxe5+ {[%emt 0:00:27]} 36. g3 {[%emt 0:00:25]} Bxc3 {[%emt 0:00:42]} 37. Bb7 {[%emt 0:00:27]} Qd7 {[%emt 0:00:31]} 38. Bxa6 {[%emt 0:00:30]} Bd4 {[%emt 0:00:31]} 39. Qb8+ {[%emt 0:00:28]} Kg7 {[%emt 0:00:28]} 40. Qf4 {[%emt 0:00:28]} Qd5 {[%emt 0:00:39]} 41. c3 {[%emt 0:00:35]} Bxc3 {[%emt 0:00:31]} 42. Bxc4 {[%emt 0:00:27]} Qc5 {[%emt 0:00:32]} 43. Bb3 {[%emt 0:00:37]} Bd4 {[%emt 0:00:36]} 44. Kg2 {[%emt 0:00:26]} Qc3 {[%emt 0:00:42]} 45. Qf3 {[%emt 0:00:27]} Qd2 {[%emt 0:00:36]} 46. a4 {[%emt 0:00:29]} Qe1 {[%emt 0:00:54]} 47. Bc4 {[%emt 0:00:32]} g5 {[%emt 0:00:50]} 48. Qe2 {[%emt 0:00:26]} Qb4 {[%emt 0:00:39]} 49. Bb5 {[%emt 0:00:27]} h6 {[%emt 0:00:35]} 50. Qe4 {[%emt 0:00:29]} Qc5 {[%emt 0:00:36]} 51. Bd3 {[%emt 0:00:34]} Bxf2 {[%emt 0:01:04]} 52. Qh7+ {[%emt 0:00:26]} Kf8 {[%emt 0:00:26]} 53. Qxh6+ {[%emt 0:00:26]} Ke7 {[%emt 0:00:26]} 54. Qh5 {[%emt 0:00:42]} Bd4 {[%emt 0:00:53]} 55. Qe2 {[%emt 0:00:36]} Qc6+ {[%emt 0:00:31]} 56. Qe4 {[%emt 0:00:28]} Qxa4 {[%emt 0:00:42]} 57. Qb7+ {[%emt 0:00:32]} Kf6 {[%emt 0:00:30]} 58. Qf3+ {[%emt 0:00:27]} Kg7 {[%emt 0:00:33]} 59. Qe4 {[%emt 0:00:27]} Qa2+ {[%emt 0:00:38]} 60. Bc2 {[%emt 0:00:26]} Bf6 {[%emt 0:00:45]} 61. Qh7+ {[%emt 0:00:29]} Kf8 {[%emt 0:00:26]} 62. Qe4 {[%emt 0:00:26]} Qb2 {[%emt 0:00:34]} 63. Kf3 {[%emt 0:00:28]} Qc1 {[%emt 0:00:33]} 64. Qe2 {[%emt 0:00:48]} Bd4 {[%emt 0:01:03]} 65. Kg4 {[%emt 0:00:38]} Bf6 {[%emt 0:01:16]} 66. Bd3 {[%emt 0:00:30]} Qc3 {[%emt 0:00:33]} 67. Kf3 {[%emt 0:00:30]} Be5 {[%emt 0:00:36]} 68. Kg2 {[%emt 0:00:38]} Kg7 {[%emt 0:00:39]} 69. Qe3 {[%emt 0:00:30]} Bf6 {[%emt 0:00:47]} 70. Qe2 {[%emt 0:00:28]} Qc5 {[%emt 0:00:29]} 71. Qe4 {[%emt 0:00:27]} Bd4 {[%emt 0:00:32]} 72. Qh7+ {[%emt 0:00:28]} Kf8 {[%emt 0:00:26]} 73. Qe4 {[%emt 0:00:26]} Qd6 {[%emt 0:00:44]} 74. Qa8+ {[%emt 0:00:28]} Kg7 {[%emt 0:00:43]} 75. Qe4 {[%emt 0:00:26]} Qc5 {[%emt 0:00:45]} 76. Qh7+ {[%emt 0:00:27]} Kf6 {[%emt 0:00:29]} 77. Qe4 {[%emt 0:00:34]} Be5 {[%emt 0:00:48]} 78. Qf3+ {[%emt 0:00:26]} Ke7 {[%emt 0:00:34]} 79. Qb7+ {[%emt 0:00:26]} Kf8 {[%emt 0:00:29]} 80. Qa8+ {[%emt 0:00:26]} Kg7 {[%emt 0:00:26]} 81. Qe4 {[%emt 0:00:26]} Bc7 {[%emt 0:00:28]} 82. Qh7+ {[%emt 0:00:27]} Kf8 {[%emt 0:00:26]} 83. Qe4 {[%emt 0:00:33]} Bb6 {[%emt 0:00:27]} 84. Qe1 {[%emt 0:00:46]} Qd4 {[%emt 0:00:37]} 85. Qf1 {[%emt 0:00:31]} Qe3 {[%emt 0:00:38]} 86. Be2 {[%emt 0:00:31]} Kg7 {[%emt 0:00:43]} 87. Bh5 {[%emt 0:00:26]} f5 {[%emt 0:00:51]} 88. Bf3 {[%emt 0:00:26]} Bd4 {[%emt 0:00:35]} 89. Be2 {[%emt 0:00:40]} Kf6 {[%emt 0:00:33]} 90. Bf3 {[%emt 0:00:26]} Bb6 {[%emt 0:00:50]} 91. Qd1 {[%emt 0:00:47]} Qf2+ {[%emt 0:00:29]} 92. Kh1 {[%emt 0:00:25]} Qxg3 {[%emt 0:00:36]} 93. Bg2 {[%emt 0:00:33]} Qf2 {[%emt 0:00:33]} 94. Qb1 {[%emt 0:00:35]} Bd4 {[%emt 0:00:27]} 95. Qc1 {[%emt 0:00:27]} Be5 {[%emt 0:00:48]} 96. Qd1 {[%emt 0:00:38]} Qg3 {[%emt 0:00:33]} 97. Qd8+ {[%emt 0:00:26]} Kg7 {[%emt 0:00:55]} 98. Qe7+ {[%emt 0:00:28]} Kh8 {[%emt 0:00:29]} 99. Qf8+ {[%emt 0:00:31]} Kh7 {[%emt 0:00:27]} 100. Qf7+ {[%emt 0:00:27]} Bg7 {[%emt 0:00:30]} 101. Qh5+ {[%emt 0:00:32]} Bh6 {[%emt 0:00:27]} 102. Qf7+ {[%emt 0:00:26]} Bg7 {[%emt 0:00:29]} 103. Qh5+ {[%emt 0:00:26]} 1/2-1/2

[Event "9th RTU Rapid 2019"]
[Site "Riga"]
[Date "2019.08.04"]
[Round "8.30"]
[White "Korchagin, Oleg"]
[Black "Bracker, Arne"]
[Result "0-1"]
[ECO "D35"]
[WhiteElo "2056"]
[BlackElo "2227"]
[Annotator "NA"]
[PlyCount "55"]
[EventDate "2019.08.05"]
[EventType "swiss"]
[EventCountry "LAT"]
[SourceTitle "playchess.com"]
[Source "ChessBase"]
[SourceQuality "1"]
[TimeControl "5400+30"]

1. d4 {[%emt 1:15:23]} Nf6 {[%emt 1:15:21]} 2. c4 {[%emt 0:00:29]} e6 {[%emt 0:00:29]} 3. Nf3 {[%emt 0:00:28]} d5 {[%emt 0:00:29]} 4. cxd5 {[%emt 0:00:55]} exd5 {[%emt 0:00:28]} 5. Qc2 {[%emt 0:00:51]} Be7 {[%emt 0:01:06]} 6. Bf4 {[%emt 0:01:56]} c6 {[%emt 0:00:35]} 7. Nc3 {[%emt 0:00:45]} g6 {[%emt 0:01:04]} 8. h3 {[%emt 0:02:35]} Bf5 {[%emt 0:00:20]} 9. Qb3 {[%emt 0:00:01]} Qb6 {[%emt 0:00:55]} 10. Nd2 {[%emt 0:02:01]} O-O {[%emt 0:05:41]} 11. e3 {[%emt 0:00:34]} Nbd7 {[%emt 0:00:54]} 12. g4 {[%emt 0:01:45]} Be6 {[%emt 0:00:31]} 13. Be2 {[%emt 0:01:25]} Qxb3 {[%emt 0:00:38]} 14. Nxb3 {[%emt 0:00:33]} a5 {[%emt 0:00:39]} 15. Rc1 {[%emt 0:01:01]} a4 {[%emt 0:00:40]} 16. Nd2 {[%emt 0:00:30]} a3 {[%emt 0:00:45]} 17. b3 {[%emt 0:00:35]} Bb4 {[%emt 0:00:36]} 18. Bh6 {[%emt 0:03:27]} Rfc8 {[%emt 0:00:42]} 19. Kd1 {[%emt 0:01:58]} Ne8 {[%emt 0:02:04]} 20. f4 {[%emt 0:00:47]} f6 {[%emt 0:01:01]} 21. Bd3 {[%emt 0:00:44]} Nd6 {[%emt 0:01:07]} 22. f5 {[%emt 0:01:35]} Bf7 {[%emt 0:00:34]} 23. Bf4 {[%emt 0:00:44]} g5 {[%emt 0:00:50]} 24. Bg3 {[%emt 0:00:35]} Re8 {[%emt 0:00:46]} 25. Ke2 {[%emt 0:00:43]} Re7 {[%emt 0:00:41]} 26. Kf3 {[%emt 0:00:32]} h5 {[%emt 0:00:59]} 27. Rhe1 {[%emt 0:00:31]} Rae8 {[%emt 0:00:35]} 28. Bxd6 0-1

[Event "9th RTU Rapid 2019"]
[Site "Riga"]
[Date "2019.08.04"]
[Round "8.31"]
[White "Bagatais, Janis"]
[Black "Ciolek, Andreas"]
[Result "1-0"]
[ECO "B13"]
[WhiteElo "1946"]
[BlackElo "2158"]
[Annotator "NA"]
[PlyCount "65"]
[EventDate "2019.08.05"]
[EventType "swiss"]
[EventCountry "LAT"]
[SourceTitle "playchess.com"]
[Source "ChessBase"]
[SourceQuality "1"]
[TimeControl "5400+30"]

1. e4 {[%emt 1:15:22]} c6 {[%emt 1:15:21]} 2. d4 {[%emt 0:00:28]} d5 {[%emt 0:00:25]} 3. exd5 {[%emt 0:00:26]} cxd5 {[%emt 0:00:26]} 4. Bd3 {[%emt 0:00:27]} Nf6 {[%emt 0:00:30]} 5. c3 {[%emt 0:00:30]} Qc7 {[%emt 0:00:29]} 6. Nf3 {[%emt 0:00:44]} Bg4 {[%emt 0:00:33]} 7. O-O {[%emt 0:00:37]} e6 {[%emt 0:00:26]} 8. h3 {[%emt 0:01:08]} Bh5 {[%emt 0:00:32]} 9. Nbd2 {[%emt 0:00:55]} Bd6 {[%emt 0:00:28]} 10. Qc2 {[%emt 0:00:45]} Bg6 {[%emt 0:00:31]} 11. Bxg6 {[%emt 0:00:40]} hxg6 {[%emt 0:00:25]} 12. b3 {[%emt 0:01:48]} Nbd7 {[%emt 0:00:35]} 13. c4 {[%emt 0:01:07]} dxc4 {[%emt 0:01:03]} 14. bxc4 {[%emt 0:00:27]} O-O {[%emt 0:00:36]} 15. Bb2 {[%emt 0:01:12]} Rac8 {[%emt 0:00:36]} 16. Qb3 {[%emt 0:01:12]} Qb6 {[%emt 0:00:43]} 17. Rac1 {[%emt 0:00:48]} Bf4 {[%emt 0:00:39]} 18. Rfd1 {[%emt 0:01:03]} Rfd8 {[%emt 0:00:31]} 19. Ba3 {[%emt 0:02:54]} Qc7 {[%emt 0:00:45]} 20. Rb1 {[%emt 0:00:46]} b6 {[%emt 0:00:31]} 21. Qa4 {[%emt 0:01:12]} e5 {[%emt 0:01:23]} 22. Be7 {[%emt 0:02:58]} Re8 {[%emt 0:00:28]} 23. Bxf6 {[%emt 0:00:28]} gxf6 {[%emt 0:00:35]} 24. Ne4 {[%emt 0:01:53]} f5 {[%emt 0:02:10]} 25. Qxd7 {[%emt 0:00:33]} fxe4 {[%emt 0:00:26]} 26. Nxe5 {[%emt 0:01:23]} Bxe5 {[%emt 0:01:15]} 27. dxe5 {[%emt 0:00:26]} Rxe5 {[%emt 0:00:35]} 28. Rbc1 {[%emt 0:01:00]} Qc5 {[%emt 0:01:30]} 29. Qxa7 {[%emt 0:01:02]} e3 {[%emt 0:00:26]} 30. fxe3 {[%emt 0:00:28]} Rxe3 {[%emt 0:00:38]} 31. Kh1 {[%emt 0:00:31]} Qc6 {[%emt 0:00:36]} 32. Qd7 {[%emt 0:00:14]} Rxh3+ {[%emt 0:01:05]} 33. Qxh3 {[%emt 0:00:42]} 1-0

[Event "9th RTU Rapid 2019"]
[Site "Riga"]
[Date "2019.08.04"]
[Round "8.32"]
[White "Mohite, Ranveer"]
[Black "Martinkus, Rolandas"]
[Result "0-1"]
[ECO "C61"]
[WhiteElo "1935"]
[BlackElo "2155"]
[Annotator "NA"]
[PlyCount "130"]
[EventDate "2019.08.05"]
[EventType "swiss"]
[EventCountry "LAT"]
[SourceTitle "playchess.com"]
[Source "ChessBase"]
[SourceQuality "1"]
[TimeControl "5400+30"]

1. e4 {[%emt 1:15:24]} e5 {[%emt 1:17:55]} 2. Nf3 {[%emt 0:00:28]} Nc6 {[%emt 0:00:26]} 3. Bb5 {[%emt 0:00:26]} Nd4 {[%emt 0:00:26]} 4. Nxd4 {[%emt 0:00:29]} exd4 {[%emt 0:00:27]} 5. O-O {[%emt 0:00:28]} Bc5 {[%emt 0:00:29]} 6. d3 {[%emt 0:00:30]} c6 {[%emt 0:00:26]} 7. Ba4 {[%emt 0:00:30]} Ne7 {[%emt 0:00:27]} 8. Nd2 {[%emt 0:01:08]} O-O {[%emt 0:00:35]} 9. c3 {[%emt 0:00:26]} Bb6 {[%emt 0:00:32]} 10. cxd4 {[%emt 0:00:36]} Bxd4 {[%emt 0:00:26]} 11. Nf3 {[%emt 0:00:26]} Bb6 {[%emt 0:00:26]} 12. d4 {[%emt 0:00:54]} d5 {[%emt 0:00:26]} 13. e5 {[%emt 0:00:30]} Bf5 {[%emt 0:00:30]} 14. Nh4 {[%emt 0:00:50]} Qd7 {[%emt 0:01:28]} 15. Be3 {[%emt 0:01:41]} f6 {[%emt 0:00:34]} 16. exf6 {[%emt 0:03:00]} Rxf6 {[%emt 0:00:27]} 17. Bg5 {[%emt 0:00:26]} Rf7 {[%emt 0:00:33]} 18. Re1 {[%emt 0:01:06]} Ng6 {[%emt 0:01:06]} 19. Nxf5 {[%emt 0:00:43]} Qxf5 {[%emt 0:00:27]} 20. Be3 {[%emt 0:00:41]} Re8 {[%emt 0:02:16]} 21. Bc2 {[%emt 0:00:44]} Qf6 {[%emt 0:00:33]} 22. Qd2 {[%emt 0:00:42]} Bc7 {[%emt 0:01:36]} 23. Bg5 {[%emt 0:01:39]} Rxe1+ {[%emt 0:00:34]} 24. Rxe1 {[%emt 0:00:26]} Qd6 {[%emt 0:00:31]} 25. g3 {[%emt 0:00:52]} h6 {[%emt 0:01:14]} 26. Be3 {[%emt 0:01:36]} Nh4 {[%emt 0:00:49]} 27. gxh4 {[%emt 0:01:29]} Qxh2+ {[%emt 0:00:26]} 28. Kf1 {[%emt 0:00:26]} Qh1+ {[%emt 0:02:29]} 29. Ke2 {[%emt 0:00:27]} Qf3+ {[%emt 0:00:53]} 30. Kd3 {[%emt 0:00:26]} c5 {[%emt 0:01:02]} 31. Qe2 {[%emt 0:00:44]} c4+ {[%emt 0:01:00]} 32. Kd2 {[%emt 0:00:54]} Ba5+ {[%emt 0:00:31]} 33. Kd1 {[%emt 0:00:40]} Bxe1 {[%emt 0:01:11]} 34. Qxf3 {[%emt 0:00:32]} Rxf3 {[%emt 0:00:27]} 35. Kxe1 {[%emt 0:00:26]} Rh3 {[%emt 0:00:27]} 36. Bf5 {[%emt 0:00:32]} Rh1+ {[%emt 0:00:46]} 37. Kd2 {[%emt 0:00:37]} Kf7 {[%emt 0:00:26]} 38. Kc3 {[%emt 0:02:21]} a5 {[%emt 0:00:27]} 39. Bd7 {[%emt 0:01:23]} Rxh4 {[%emt 0:00:55]} 40. b3 {[%emt 0:00:30]} Ke7 {[%emt 0:00:48]} 41. Bb5 {[%emt 0:00:28]} cxb3 {[%emt 0:00:38]} 42. axb3 {[%emt 0:00:36]} g5 {[%emt 0:00:34]} 43. Bd3 {[%emt 0:00:44]} Kf6 {[%emt 0:01:13]} 44. b4 {[%emt 0:00:26]} b6 {[%emt 0:00:34]} 45. Kb3 {[%emt 0:01:06]} Rh1 {[%emt 0:00:37]} 46. bxa5 {[%emt 0:00:37]} bxa5 {[%emt 0:00:26]} 47. Ka4 {[%emt 0:00:33]} Ra1+ {[%emt 0:00:35]} 48. Kb5 {[%emt 0:00:26]} a4 {[%emt 0:00:44]} 49. Kc5 {[%emt 0:00:33]} Rd1 {[%emt 0:00:39]} 50. Bc2 {[%emt 0:00:34]} a3 {[%emt 0:00:33]} 51. Bb3 {[%emt 0:00:38]} Kf5 {[%emt 0:01:05]} 52. Kxd5 {[%emt 0:00:35]} h5 {[%emt 0:00:32]} 53. Bc2+ {[%emt 0:00:30]} Kf6 {[%emt 0:00:29]} 54. Bb3 {[%emt 0:00:26]} h4 {[%emt 0:00:29]} 55. Ke4 {[%emt 0:00:28]} Rb1 {[%emt 0:00:33]} 56. Bc4 {[%emt 0:00:39]} h3 {[%emt 0:00:36]} 57. Kf3 {[%emt 0:00:28]} Rg1 {[%emt 0:00:38]} 58. d5 {[%emt 0:00:38]} h2 {[%emt 0:00:30]} 59. Bd4+ {[%emt 0:00:26]} Kg6 {[%emt 0:00:26]} 60. Bd3+ {[%emt 0:00:28]} Kh6 {[%emt 0:00:26]} 61. d6 {[%emt 0:00:41]} h1=Q+ {[%emt 0:00:27]} 62. Ke3 {[%emt 0:00:29]} Re1+ {[%emt 0:00:31]} 63. Kd2 {[%emt 0:00:29]} Rd1+ {[%emt 0:00:26]} 64. Kc3 {[%emt 0:00:26]} Rxd3+ {[%emt 0:00:26]} 65. Kxd3 {[%emt 0:00:26]} Qd5 {[%emt 0:00:27]} 0-1